bitfinex-derivatives/quotes_BTCF0:USTF0_20250121
["timestamp","ask_amount","ask_price","bid_price","bid_amount"]
[1737478443637,0.157691,105560.0,105550.0,0.047391]
[1737478444231,0.383691,105560.0,105550.0,0.047391]
[1737478444725,0.383691,105560.0,105550.0,0.051391]
[1737478444929,0.384691,105560.0,105550.0,0.051391]
[1737478445130,0.385691,105560.0,105550.0,0.055391]
[1737478445832,0.746491,105560.0,105550.0,0.055391]
[1737478446029,0.748491,105560.0,105550.0,0.004]
[1737478446334,0.87750049,105560.0,105550.0,0.004]
[1737478446540,0.047392,105550.0,105540.0,0.00014194]
[1737478446843,0.53720149,105550.0,105540.0,0.00014194]
[1737478447025,0.408192,105550.0,105540.0,0.00014194]
[1737478447632,0.408192,105550.0,105540.0,0.04753794]
[1737478448437,0.410192,105550.0,105540.0,0.00014194]
[1737478449331,0.53920149,105550.0,105540.0,0.00014194]
[1737478449933,0.047409,105520.0,105510.0,0.047409]
[1737478450139,0.48980949,105520.0,105490.0,0.04147686]
[1737478450339,0.408214,105500.0,105490.0,0.08889486]
[1737478450643,0.408214,105500.0,105490.0,0.05580394]
[1737478451034,0.408214,105500.0,105490.0,0.047418]
[1737478451834,0.410214,105500.0,105490.0,0.051418]
[1737478452036,0.3628,105500.0,105490.0,0.051418]
[1737478454141,0.002,105500.0,105490.0,0.54122749]
[1737478454540,0.002,105500.0,105490.0,0.88532749]
[1737478455547,0.002,105500.0,105490.0,2.38532749]
[1737478455743,0.14060305,105530.0,105500.0,0.047414]
[1737478455948,0.14060305,105530.0,105520.0,0.53721449]
[1737478456139,0.14060305,105530.0,105520.0,0.408205]
[1737478456955,0.14160305,105530.0,105520.0,0.408205]
[1737478457246,0.14260305,105530.0,105520.0,0.53721449]
[1737478457452,0.13746111,105530.0,105520.0,0.53721449]
[1737478457635,0.13846111,105530.0,105520.0,0.76171449]
[1737478459055,0.002,105530.0,105520.0,0.87011449]
[1737478459352,0.49180949,105530.0,105510.0,0.00014194]
[1737478459551,0.53721449,105520.0,105510.0,0.00014194]
[1737478460050,0.408205,105520.0,105510.0,0.00014194]
[1737478460846,0.409205,105520.0,105510.0,0.00214194]
[1737478461038,0.410205,105520.0,105510.0,0.00614194]
[1737478461456,0.410205,105520.0,105510.0,0.05355194]
[1737478461753,0.049405,105520.0,105510.0,0.05355194]
[1737478462139,0.049405,105520.0,105510.0,1.55355194]
[1737478462345,0.002,105520.0,105510.0,1.55355194]
[1737478462552,0.002,105520.0,105510.0,2.04336143]
[1737478462747,0.002,105520.0,105510.0,2.28006143]
[1737478464155,0.11293517,105540.0,105530.0,0.047401]
[1737478464350,0.11293517,105540.0,105530.0,0.408201]
[1737478465455,0.047405,105520.0,105510.0,0.37237143]
[1737478465656,0.3608,105480.0,105470.0,9.96e-05]
[1737478465951,0.3608,105460.0,105450.0,0.1033996]
[1737478466151,0.3608,105460.0,105410.0,0.40434725]
[1737478466152,0.04744,105450.0,105430.0,0.3291568]
[1737478466355,0.7216,105440.0,105400.0,0.70767691]
[1737478466543,0.3608,105410.0,105400.0,0.70767691]
[1737478466746,0.00011698,105410.0,105400.0,0.73982518]
[1737478467057,1.02719096,105410.0,105400.0,0.38544289]
[1737478467258,0.047459,105400.0,105390.0,0.4284761]
[1737478467451,0.66627798,105400.0,105390.0,0.4284761]
[1737478467753,0.56101711,105400.0,105350.0,0.71416566]
[1737478467953,0.20021711,105360.0,105350.0,1.07496566]
[1737478468152,0.20021711,105390.0,105350.0,1.07496566]
[1737478468350,0.20121711,105410.0,105380.0,0.3608]
[1737478468551,0.3608,105400.0,105380.0,0.3608]
[1737478468757,0.36088649,105400.0,105380.0,0.3608]
[1737478469060,0.40834048,105390.0,105370.0,1.50052]
[1737478469251,0.60855759,105390.0,105370.0,1.5]
[1737478469759,0.00011513,105380.0,105370.0,1.5]
[1737478470744,0.408268,105380.0,105370.0,1.5]
[1737478470945,0.412268,105380.0,105370.0,1.5]
[1737478471150,0.416268,105380.0,105350.0,0.5707479]
[1737478471354,0.00010292,105370.0,105350.0,0.5707479]
[1737478471752,0.00010292,105370.0,105360.0,1.5]
[1737478471948,0.00010292,105370.0,105360.0,1.8608]
[1737478472158,0.00014194,105390.0,105360.0,1.8608]
[1737478472457,0.00014194,105390.0,105380.0,0.56101711]
[1737478472855,0.00014194,105390.0,105380.0,0.92181711]
[1737478473054,0.00024678,105390.0,105380.0,0.96928511]
[1737478473255,0.165047,105430.0,105400.0,0.047457]
[1737478473452,0.3608,105420.0,105390.0,0.408262]
[1737478473652,0.047455,105410.0,105390.0,0.408262]
[1737478473851,0.047455,105410.0,105400.0,0.3608]
[1737478474158,0.047455,105410.0,105390.0,0.3608]
[1737478474550,0.047455,105410.0,105390.0,0.36094194]
[1737478474751,0.416255,105410.0,105390.0,0.00014194]
[1737478474952,0.055455,105410.0,105390.0,0.36094194]
[1737478475151,0.416255,105410.0,105390.0,0.36094194]
[1737478475553,0.416255,105410.0,105390.0,0.00014194]
[1737478475856,0.416255,105410.0,105380.0,0.408268]
[1737478475857,0.33945039,105400.0,105380.0,0.23746759]
[1737478476061,0.33945039,105400.0,105390.0,0.001]
[1737478476453,0.33945039,105400.0,105390.0,0.002]
[1737478477157,0.34445039,105400.0,105390.0,1.501]
[1737478477557,0.35345039,105400.0,105390.0,1.5]
[1737478477756,0.30599139,105400.0,105380.0,0.24792144]
[1737478478258,0.30399139,105400.0,105390.0,0.001]
[1737478478561,0.30399139,105400.0,105390.0,0.409264]
[1737478478861,0.23880447,105400.0,105390.0,1.547464]
[1737478479457,0.23780447,105400.0,105390.0,1.547464]
[1737478479767,0.23480447,105400.0,105390.0,1.56230155]
[1737478480259,0.23380447,105400.0,105390.0,1.56230155]
[1737478480462,0.59460447,105400.0,105390.0,0.06230155]
[1737478480662,0.56317969,105400.0,105390.0,0.01483755]
[1737478480857,0.55917969,105400.0,105390.0,1.51883755]
[1737478481060,0.55717969,105400.0,105390.0,1.06302408]
[1737478481361,0.55717969,105400.0,105390.0,1.06602408]
[1737478481950,0.55717969,105400.0,105390.0,1.06202408]
[1737478482155,0.55617969,105400.0,105390.0,1.06202408]
[1737478482358,0.55617969,105400.0,105390.0,0.003]
[1737478482862,0.56017969,105400.0,105380.0,0.3608]
[1737478483058,0.60763869,105400.0,105380.0,0.3608]
[1737478483258,0.60763869,105400.0,105380.0,1.8608]
[1737478483653,0.61463869,105400.0,105380.0,1.8608]
[1737478483852,0.61063869,105400.0,105380.0,1.8608]
[1737478484052,0.61463869,105400.0,105380.0,1.8608]
[1737478484456,0.78209565,105400.0,105380.0,1.8608]
[1737478484856,0.78209565,105400.0,105380.0,1.908268]
[1737478485265,0.3608,105390.0,105380.0,1.547468]
[1737478486158,0.408264,105390.0,105380.0,1.547468]
[1737478486359,0.003,105390.0,105380.0,1.547468]
[1737478486554,0.050464,105390.0,105380.0,1.547468]
[1737478486956,0.054464,105390.0,105380.0,1.547468]
[1737478487157,0.415264,105390.0,105380.0,1.5]
[1737478488159,0.047468,105380.0,105370.0,0.36575839]
[1737478488361,0.408268,105380.0,105370.0,0.36575839]
[1737478488861,0.408268,105380.0,105370.0,0.20868639]
[1737478489062,0.408268,105380.0,105370.0,0.00846928]
[1737478489269,0.047477,105360.0,105350.0,0.165381]
[1737478489469,0.408277,105360.0,105350.0,0.165381]
[1737478489672,0.047482,105350.0,105340.0,0.1773404]
[1737478489870,0.408282,105350.0,105340.0,0.13824261]
[1737478490071,0.408282,105350.0,105340.0,1.63824261]
[1737478490264,0.408282,105350.0,105340.0,1.66199382]
[1737478490774,0.408282,105350.0,105340.0,1.52375121]
[1737478490978,0.409282,105350.0,105340.0,0.02675121]
[1737478491978,0.409282,105350.0,105340.0,0.17116456]
[1737478492274,0.410282,105350.0,105340.0,0.17116456]
[1737478492874,0.410282,105350.0,105340.0,0.15660561]
[1737478493264,0.410282,105350.0,105340.0,0.17145212]
[1737478493471,0.409282,105350.0,105340.0,0.16845212]
[1737478494676,0.047486,105340.0,105330.0,1.52483102]
[1737478494978,0.408286,105340.0,105330.0,1.65468542]
[1737478495663,0.408286,105340.0,105330.0,1.65768542]
[1737478495664,0.38697401,105340.0,105330.0,1.65768542]
[1737478495864,0.38797401,105340.0,105330.0,1.65768542]
[1737478496375,0.38797401,105340.0,105330.0,0.10039745]
[1737478496678,0.38797401,105340.0,105330.0,0.05290945]
[1737478496974,0.38897401,105340.0,105330.0,0.0113406]
[1737478497175,0.38897401,105340.0,105330.0,0.141195]
[1737478497375,0.38897401,105340.0,105330.0,0.0113406]
[1737478498372,0.61540617,105340.0,105330.0,0.0113406]
[1737478498576,0.61540617,105340.0,105330.0,1.5113406]
[1737478499075,0.047491,105330.0,105320.0,0.1773454]
[1737478499278,0.047491,105330.0,105320.0,0.18416461]
[1737478499477,0.047491,105330.0,105320.0,0.22573646]
[1737478499668,0.61540617,105340.0,105320.0,0.22573646]
[1737478499669,0.58929999,105340.0,105320.0,0.22573646]
[1737478499868,0.63678799,105340.0,105330.0,0.1773454]
[1737478500075,0.63678799,105340.0,105330.0,1.6773454]
[1737478500269,0.63678799,105340.0,105330.0,1.5]
[1737478500677,0.63678799,105340.0,105330.0,1.547491]
[1737478500974,0.63578799,105340.0,105330.0,1.547491]
[1737478501674,0.63678799,105340.0,105330.0,1.547491]
[1737478501870,0.63578799,105340.0,105330.0,1.547491]
[1737478502368,0.22749999,105340.0,105330.0,2.3381454]
[1737478502572,0.28127431,105360.0,105350.0,0.047482]
[1737478502767,0.28127431,105360.0,105350.0,0.71662361]
[1737478502768,0.20352677,105360.0,105350.0,0.71662361]
[1737478502968,0.20352677,105360.0,105350.0,0.58676921]
[1737478503173,0.20352677,105360.0,105350.0,0.69956921]
[1737478503482,0.20357308,105360.0,105350.0,0.69956921]
[1737478503681,0.20357308,105360.0,105350.0,0.81746921]
[1737478503885,0.21057308,105360.0,105350.0,0.81746921]
[1737478504683,0.21057308,105360.0,105350.0,0.45666921]
[1737478504873,0.61585108,105360.0,105350.0,0.45666921]
[1737478505381,0.61285108,105360.0,105350.0,0.45666921]
[1737478505579,0.61285108,105360.0,105350.0,1.95666921]
[1737478506182,0.61485108,105360.0,105350.0,1.95666921]
[1737478506573,0.61385108,105360.0,105350.0,1.95666921]
[1737478506774,0.61485108,105360.0,105350.0,1.95666921]
[1737478507382,0.61785108,105360.0,105350.0,1.95666921]
[1737478507769,0.61785108,105360.0,105350.0,1.67848721]
[1737478507975,0.047486,105350.0,105340.0,0.00014194]
[1737478508179,0.408286,105350.0,105340.0,0.00014194]
[1737478508374,0.640786,105350.0,105340.0,0.00014194]
[1737478508572,0.640786,105350.0,105340.0,0.01498858]
[1737478508778,0.640786,105350.0,105340.0,0.14484298]
[1737478508986,0.640786,105350.0,105340.0,0.01498858]
[1737478509476,0.64083231,105350.0,105340.0,0.01498858]
[1737478509675,0.64283231,105350.0,105340.0,0.01498858]
[1737478509878,0.64283231,105350.0,105340.0,0.02180907]
[1737478510180,0.047495,105330.0,105320.0,1.5]
[1737478510379,0.047495,105330.0,105300.0,0.147506]
[1737478510380,0.8989494,105330.0,105300.0,0.147508]
[1737478510592,0.408304,105310.0,105300.0,0.36776671]
[1737478510885,0.408304,105310.0,105300.0,1.86776671]
[1737478511183,0.37860388,105310.0,105300.0,1.73791231]
[1737478511379,0.047504,105310.0,105300.0,1.73791231]
[1737478511576,0.408304,105310.0,105300.0,1.73791231]
[1737478511977,0.00018825,105320.0,105310.0,0.0475]
[1737478512178,0.00018825,105320.0,105310.0,0.22617984]
[1737478512378,0.3618,105330.0,105310.0,0.22617984]
[1737478512579,0.24551066,105360.0,105320.0,1.0288038]
[1737478512884,0.24551066,105360.0,105350.0,0.047482]
[1737478513087,0.60631066,105360.0,105350.0,0.047482]
[1737478513476,0.30263803,105350.0,105330.0,0.4119434]
[1737478513686,0.30263803,105350.0,105340.0,0.047484]
[1737478513879,0.30263803,105350.0,105340.0,0.09627576]
[1737478514074,0.30263803,105350.0,105340.0,0.04879176]
[1737478514278,0.66280306,105350.0,105340.0,0.04879176]
[1737478514773,0.047486,105340.0,105330.0,0.13014739]
[1737478514978,0.047486,105340.0,105330.0,0.13148557]
[1737478515286,0.408286,105340.0,105330.0,0.04882618]
[1737478515487,0.047486,105340.0,105330.0,0.04882618]
[1737478515683,0.408286,105340.0,105330.0,0.04882618]
[1737478516075,0.411286,105340.0,105330.0,0.04882618]
[1737478516586,0.0475,105310.0,105300.0,1.647503]
[1737478516775,0.4083,105310.0,105300.0,0.14886133]
[1737478516974,0.5381544,105310.0,105270.0,0.20304325]
[1737478517190,0.047513,105280.0,105270.0,0.37717451]
[1737478517489,0.047513,105280.0,105270.0,1.92553252]
[1737478518382,0.02612333,105280.0,105270.0,1.94929882]
[1737478519280,0.02612333,105280.0,105270.0,1.92553252]
[1737478519480,0.02612333,105280.0,105270.0,1.87665298]
[1737478519685,0.001,105280.0,105270.0,2.23745298]
[1737478519988,0.408307,105300.0,105270.0,2.24427449]
[1737478520178,0.408307,105300.0,105280.0,0.40831]
[1737478520374,0.408307,105300.0,105290.0,0.047509]
[1737478520885,0.408302,105310.0,105290.0,0.29465807]
[1737478521100,0.40844394,105310.0,105300.0,0.047504]
[1737478522386,0.36494194,105310.0,105290.0,0.2312]
[1737478522682,0.408304,105300.0,105290.0,0.278708]
[1737478522894,0.18918908,105300.0,105290.0,1.547508]
[1737478523082,0.54998908,105300.0,105290.0,1.547508]
[1737478523477,0.54998908,105300.0,105290.0,1.55423177]
[1737478524483,0.047509,105290.0,105280.0,0.04765294]
[1737478524683,0.408309,105290.0,105280.0,0.04765294]
[1737478524882,0.408309,105290.0,105280.0,1.54765294]
[1737478525592,0.55098908,105300.0,105290.0,0.047509]
[1737478525593,0.55099208,105300.0,105290.0,0.047509]
[1737478526095,0.54999208,105300.0,105290.0,0.047509]
[1737478526791,0.50248508,105300.0,105290.0,0.047509]
[1737478527000,0.54998908,105300.0,105290.0,0.048509]
[1737478527889,0.55098908,105300.0,105290.0,0.048509]
[1737478530296,0.66415981,105300.0,105290.0,0.048509]
[1737478530499,0.66415981,105300.0,105290.0,1.548509]
[1737478532693,0.25585581,105300.0,105290.0,2.1097518]
[1737478533198,0.25585581,105300.0,105290.0,1.909309]
[1737478533504,0.11417073,105300.0,105290.0,1.909309]
[1737478536703,0.001,105300.0,105290.0,1.909309]
[1737478537403,0.001,105300.0,105290.0,2.016709]
[1737478538498,0.001,105300.0,105290.0,1.548509]
[1737478538894,0.409304,105300.0,105290.0,1.548509]
[1737478539102,0.048504,105300.0,105290.0,1.548509]
[1737478539297,0.409304,105300.0,105290.0,1.548509]
[1737478539701,0.409304,105300.0,105290.0,0.048509]
[1737478539904,0.65521949,105300.0,105290.0,0.048509]
[1737478540104,0.76839022,105300.0,105290.0,0.048509]
[1737478540600,0.63837473,105300.0,105290.0,0.048509]
[1737478540799,0.87479022,105300.0,105290.0,0.048509]
[1737478541199,0.38397473,105300.0,105290.0,0.048509]
[1737478541397,0.11417073,105300.0,105290.0,0.53932449]
[1737478541599,0.11417073,105300.0,105290.0,0.17852449]
[1737478542001,0.47497073,105300.0,105290.0,0.17852449]
[1737478542198,0.52247473,105300.0,105290.0,0.048509]
[1737478542801,0.47497073,105300.0,105290.0,0.048509]
[1737478543002,0.67350717,105300.0,105290.0,0.048509]
[1737478545600,0.67350717,105300.0,105290.0,1.548509]
[1737478546498,0.67450717,105300.0,105290.0,1.59009354]
[1737478547016,0.31370717,105300.0,105290.0,1.59009354]
[1737478547314,0.67350717,105300.0,105290.0,1.59009354]
[1737478547614,0.67350717,105300.0,105290.0,1.548509]
[1737478547813,0.72101117,105300.0,105290.0,1.548509]
[1737478549420,0.85102666,105300.0,105290.0,1.548509]
[1737478549615,0.85102666,105300.0,105290.0,0.048509]
[1737478549810,0.72101117,105300.0,105290.0,0.048509]
[1737478550006,0.409304,105300.0,105290.0,0.048509]
[1737478550722,0.409304,105300.0,105290.0,0.06336208]
[1737478550912,0.409304,105300.0,105290.0,0.06336217]
[1737478551726,0.409304,105300.0,105290.0,0.06336188]
[1737478552313,0.409304,105300.0,105290.0,0.01585288]
[1737478553123,0.409304,105300.0,105290.0,0.03070659]
[1737478553624,0.60733666,105300.0,105290.0,0.03070659]
[1737478553822,0.60733666,105300.0,105290.0,0.01585288]
[1737478554813,0.60733666,105300.0,105280.0,1.6018008]
[1737478554814,0.60733666,105300.0,105280.0,0.0067828]
[1737478555119,0.60733666,105300.0,105240.0,0.46866528]
[1737478555120,0.408327,105250.0,105200.0,0.34200197]
[1737478555427,0.04754,105220.0,105200.0,0.34200197]
[1737478555622,0.047545,105210.0,105200.0,0.34200197]
[1737478555820,0.408345,105210.0,105180.0,0.84484319]
[1737478556023,0.98163098,105190.0,105180.0,0.48857819]
[1737478556316,0.047563,105170.0,105160.0,0.72276507]
[1737478556516,1.02919398,105170.0,105160.0,0.72276507]
[1737478557524,1.32919398,105170.0,105160.0,0.09962507]
[1737478557822,0.047572,105150.0,105140.0,0.40345975]
[1737478558122,0.53838749,105150.0,105140.0,0.3887074]
[1737478558323,0.047577,105140.0,105130.0,0.44875877]
[1737478558630,0.53839249,105140.0,105130.0,0.44875877]
[1737478559627,0.53839249,105140.0,105130.0,0.34769367]
[1737478559819,0.60955985,105140.0,105130.0,0.34769367]
[1737478560015,0.90955985,105140.0,105130.0,0.04300789]
[1737478560218,0.90955985,105140.0,105100.0,0.20867602]
[1737478560219,0.04759,105110.0,105100.0,0.20867602]
[1737478560429,0.047598,105100.0,105080.0,0.54884438]
[1737478560630,0.3608,105090.0,105080.0,0.54884438]
[1737478560928,0.408399,105090.0,105080.0,0.54884438]
[1737478561330,0.047607,105080.0,105060.0,1.55614831]
[1737478561528,0.408407,105080.0,105060.0,0.05614831]
[1737478561831,0.3608,105080.0,105070.0,0.047608]
[1737478562030,0.36088791,105080.0,105070.0,0.047608]
[1737478562232,0.36087438,105080.0,105070.0,0.047608]
[1737478562432,0.3618,105080.0,105070.0,0.047608]
[1737478562628,0.3618,105080.0,105070.0,0.11608388]
[1737478563126,0.3618,105080.0,105070.0,0.047608]
[1737478563525,0.3628,105080.0,105070.0,0.047608]
[1737478563921,0.047613,105060.0,105050.0,0.00842217]
[1737478564230,0.7216,105060.0,105030.0,0.047624]
[1737478564532,0.40850282,105050.0,105030.0,1.5]
[1737478564726,0.408422,105040.0,105030.0,1.5]
[1737478564923,0.408422,105040.0,105020.0,0.36090025]
[1737478565124,0.408422,105040.0,105030.0,0.06849938]
[1737478565324,0.40856463,105040.0,105030.0,0.06849938]
[1737478565527,0.40856463,105040.0,105020.0,0.01453747]
[1737478565728,0.20118285,105030.0,105020.0,0.01443722]
[1737478565929,2.22992916,105040.0,105020.0,0.06206822]
[1737478566129,2.22992916,105040.0,105020.0,0.06850612]
[1737478566730,2.23392916,105040.0,105020.0,0.11613512]
[1737478566935,0.20118285,105030.0,105020.0,0.11613512]
[1737478567236,0.3608,105030.0,105010.0,0.2556123]
[1737478567426,7.305e-05,105020.0,105010.0,0.3032473]
[1737478567830,7.305e-05,105020.0,105010.0,0.9032473]
[1737478568032,5e-08,105020.0,105010.0,0.9032473]
[1737478568334,0.004,105030.0,105010.0,0.61730044]
[1737478568529,0.3648,105030.0,105020.0,1.5]
[1737478568734,0.3648,105030.0,105010.0,0.03840337]
[1737478568938,0.3608,105020.0,105010.0,0.02978374]
[1737478569230,0.36084782,105020.0,105010.0,1.5]
[1737478569437,0.60961585,105020.0,105000.0,0.15]
[1737478569734,0.408435,105010.0,105000.0,0.15]
[1737478569929,0.408435,105010.0,104980.0,0.2138]
[1737478570129,0.36084782,105000.0,104980.0,0.2138]
[1737478570736,0.36084782,105000.0,104980.0,0.24359369]
[1737478571034,4.782e-05,105000.0,104980.0,2.15704169]
[1737478571227,4.782e-05,105000.0,104980.0,1.913448]
[1737478571535,0.00104782,105000.0,104980.0,0.42586761]
[1737478571737,0.00104782,105000.0,104980.0,0.62705046]
[1737478572036,0.36184782,105000.0,104980.0,0.62705046]
[1737478572237,0.04769282,104990.0,104980.0,0.06506861]
[1737478572531,4.782e-05,104990.0,104980.0,0.06506861]
[1737478572729,0.16226888,104990.0,104980.0,0.66506861]
[1737478572925,0.16226888,104990.0,104980.0,0.18841493]
[1737478573122,0.16226888,104990.0,104980.0,0.23606393]
[1737478574235,0.13509914,104990.0,104980.0,0.23606393]
[1737478574636,0.13509914,104990.0,104980.0,0.59686393]
[1737478574836,0.13509914,104990.0,104980.0,0.17282212]
[1737478575039,0.01592602,104990.0,104980.0,0.06093236]
[1737478575228,0.01592602,104990.0,104980.0,0.42173236]
[1737478575430,0.3484303,105000.0,104990.0,0.047644]
[1737478575631,0.7092303,105000.0,104990.0,0.047644]
[1737478576530,0.7568713,105000.0,104980.0,0.06092936]
[1737478576726,0.3484303,105000.0,104980.0,0.06092936]
[1737478576926,0.7092303,105000.0,104990.0,0.047644]
[1737478577329,0.7092303,105000.0,104980.0,0.10954983]
[1737478577531,0.3484303,105000.0,104990.0,0.047644]
[1737478577737,0.3484303,105000.0,104990.0,0.43227637]
[1737478577933,0.21629475,105010.0,105000.0,0.04764]
[1737478578133,0.21629475,105010.0,105000.0,0.60962285]
[1737478578337,0.3245778,105010.0,105000.0,0.60962285]
[1737478578533,0.3245778,105010.0,105000.0,1.77265522]
[1737478578534,0.6853778,105010.0,105000.0,1.77265522]
[1737478578934,0.6853778,105010.0,105000.0,1.62965834]
[1737478579138,0.6853778,105010.0,105000.0,1.52383237]
[1737478579737,0.7330128,105010.0,105000.0,0.07147237]
[1737478579936,0.7330128,105010.0,105000.0,0.02383237]
[1737478580439,0.408435,105010.0,104980.0,0.0707252]
[1737478580643,0.408435,105010.0,105000.0,0.01489565]
[1737478580832,0.769235,105010.0,105000.0,0.01489565]
[1737478581234,0.770235,105010.0,105000.0,0.01489565]
[1737478581434,0.7226,105010.0,105000.0,1.54764]
[1737478582145,0.7226,105010.0,105000.0,0.04467992]
[1737478582638,0.7226,105010.0,105000.0,0.09231992]
[1737478582942,0.7226,105010.0,105000.0,0.07742626]
[1737478583136,0.7226,105010.0,105000.0,0.10125533]
[1737478583337,0.770235,105010.0,105000.0,0.06213351]
[1737478583535,0.85207251,105010.0,105000.0,0.02978626]
[1737478583736,0.85207251,105010.0,105000.0,0.0292615]
[1737478583935,0.85207251,105010.0,104990.0,0.095281]
[1737478584136,0.3608,105000.0,104990.0,0.08636804]
[1737478584337,0.40844,105000.0,104990.0,0.03872804]
[1737478584634,0.40844,105000.0,104990.0,0.0685185]
[1737478585043,0.40844,105000.0,104990.0,0.1161625]
[1737478585339,0.40844,105000.0,104990.0,0.07743446]
[1737478585545,0.457084,105000.0,104980.0,0.047646]
[1737478585746,0.3608,104990.0,104980.0,0.047646]
[1737478586140,0.3608,104990.0,104980.0,0.0893541]
[1737478586336,0.33935012,104990.0,104980.0,0.0893541]
[1737478586532,0.30955875,104990.0,104980.0,0.047645]
[1737478587238,0.35820275,104990.0,104980.0,0.047645]
[1737478588747,0.35820275,104990.0,104980.0,1.547645]
[1737478588943,0.35820275,104990.0,104980.0,1.5]
[1737478589248,0.31055875,104990.0,104970.0,0.05603518]
[1737478589441,0.408449,104980.0,104970.0,0.05603518]
[1737478589742,0.408449,104980.0,104970.0,1.55603518]
[1737478590141,0.408449,104980.0,104970.0,0.05603518]
[1737478590444,0.408449,104980.0,104930.0,0.047671]
[1737478590445,0.047669,104940.0,104930.0,0.047671]
[1737478590641,0.408469,104940.0,104930.0,0.0417229]
[1737478590839,0.408469,104940.0,104930.0,0.047672]
[1737478591242,0.53925615,104940.0,104920.0,4e-05]
[1737478591548,0.53925615,104940.0,104920.0,0.02388702]
[1737478591549,0.408472,104930.0,104920.0,0.02388702]
[1737478591938,0.40758683,104930.0,104920.0,0.02388702]
[1737478592135,0.3608,104930.0,104920.0,0.15467417]
[1737478592341,0.3618,104940.0,104920.0,0.20235017]
[1737478592541,0.409469,104940.0,104920.0,0.07156102]
[1737478592736,0.409469,104940.0,104930.0,0.047672]
[1737478592943,0.7226,104940.0,104920.0,0.02388702]
[1737478593146,0.408472,104930.0,104920.0,0.07156102]
[1737478593745,0.3618,104930.0,104920.0,0.07156102]
[1737478594249,0.001,104930.0,104920.0,0.53930115]
[1737478594444,0.36094263,104950.0,104940.0,0.047667]
[1737478595251,0.53939278,104950.0,104940.0,0.047667]
[1737478595442,0.047667,104940.0,104930.0,0.047668]
[1737478595646,0.3608,104940.0,104930.0,0.047668]
[1737478596151,0.40860763,104950.0,104940.0,0.047667]
[1737478596346,0.72174263,104950.0,104940.0,0.047667]
[1737478596651,0.76940563,104950.0,104940.0,0.047667]
[1737478596837,0.72174263,104950.0,104940.0,0.047667]
[1737478598144,0.76940563,104950.0,104930.0,0.15657]
[1737478598454,0.047672,104930.0,104920.0,0.047674]
[1737478598638,0.408472,104930.0,104920.0,0.05613615]
[1737478599439,0.53925915,104930.0,104910.0,0.121677]
[1737478599646,0.3608,104920.0,104910.0,0.074]
[1737478599846,0.513376,104920.0,104910.0,0.074]
[1737478600648,0.514376,104920.0,104910.0,0.16341945]
[1737478601045,0.514376,104920.0,104910.0,0.121681]
[1737478601442,0.64516315,104920.0,104910.0,0.13658772]
[1737478601852,0.64516315,104920.0,104910.0,0.08890672]
[1737478602158,0.514376,104920.0,104910.0,0.13658772]
[1737478602951,0.55672227,104920.0,104910.0,0.13658772]
[1737478603252,0.55672227,104920.0,104910.0,0.047681]
[1737478603453,0.55672227,104920.0,104910.0,1.58941912]
[1737478604151,0.00014263,104930.0,104920.0,0.047676]
[1737478604347,0.3608,104940.0,104930.0,0.047672]
[1737478605655,0.3608,104940.0,104930.0,0.17845915]
[1737478606146,0.3608,104940.0,104930.0,0.047672]
[1737478606854,0.3618,104940.0,104930.0,0.047672]
[1737478607353,0.3618,104940.0,104930.0,0.877272]
[1737478607655,0.50050241,104940.0,104930.0,0.877272]
[1737478607955,0.50050241,104940.0,104930.0,0.75326966]
[1737478608351,0.50050241,104940.0,104930.0,0.79499458]
[1737478608948,0.50050241,104940.0,104930.0,2.29499458]
[1737478609147,0.50050241,104940.0,104930.0,2.25326966]
[1737478609556,0.55607419,104940.0,104930.0,2.25326966]
[1737478610156,0.55607419,104940.0,104930.0,2.05298333]
[1737478610368,0.55607419,104940.0,104930.0,2.25474882]
[1737478610553,0.13884504,104950.0,104940.0,0.047667]
[1737478610854,0.52724289,104960.0,104940.0,0.20971726]
[1737478611061,0.57490089,104960.0,104950.0,0.047663]
[1737478611367,0.93570089,104960.0,104950.0,0.047663]
[1737478612254,0.88804289,104960.0,104940.0,0.00014263]
[1737478612454,0.408463,104950.0,104940.0,0.04780663]
[1737478613162,0.408463,104950.0,104940.0,0.0627096]
[1737478613362,0.408463,104950.0,104940.0,0.0527096]
[1737478613761,0.408463,104950.0,104940.0,0.03780663]
[1737478614160,0.411463,104950.0,104940.0,0.03780663]
[1737478615051,0.411463,104950.0,104940.0,0.02980704]
[1737478615265,0.411463,104950.0,104940.0,0.07747404]
[1737478615558,0.411463,104950.0,104940.0,0.02980704]
[1737478615760,0.532663,104950.0,104940.0,0.02980704]
[1737478616760,0.532663,104950.0,104940.0,0.01490374]
[1737478617062,0.047667,104940.0,104930.0,0.56144544]
[1737478617262,0.408467,104940.0,104930.0,0.59125427]
[1737478617463,0.408467,104940.0,104930.0,0.57634986]
[1737478618552,0.408467,104940.0,104930.0,0.59125429]
[1737478620066,0.3608,104940.0,104930.0,0.59125429]
[1737478620260,0.3608,104940.0,104930.0,0.79301978]
[1737478620462,0.52738552,104950.0,104940.0,0.047667]
[1737478620665,0.51979344,104950.0,104940.0,0.06257143]
[1737478622074,0.15899344,104950.0,104940.0,0.06257143]
[1737478622871,0.3608,104970.0,104950.0,0.047663]
[1737478623074,0.3608,104980.0,104970.0,0.047654]
[1737478623272,0.3608,104980.0,104970.0,1.76432392]
[1737478624174,0.3698,104980.0,104970.0,1.76432392]
[1737478625983,0.3698,104980.0,104970.0,2.59392392]
[1737478626286,0.3698,104980.0,104970.0,2.6043599]
[1737478627273,0.009,104980.0,104970.0,2.6043599]
[1737478627478,1.05605583,104990.0,104970.0,3.0273599]
[1737478627678,1.04705584,104990.0,104980.0,0.047649]
[1737478627891,0.36094263,104990.0,104980.0,0.06255343]
[1737478628389,0.36021153,105030.0,105020.0,0.047631]
[1737478628390,0.67338453,105030.0,105020.0,0.047631]
[1737478628584,0.55658453,105030.0,105020.0,0.06253543]
[1737478628889,0.19578453,105030.0,105020.0,1.76430092]
[1737478629488,0.20278453,105030.0,105020.0,1.76430092]
[1737478629685,0.20278453,105030.0,105020.0,1.69315707]
[1737478630187,0.20278453,105030.0,105020.0,2.05395707]
[1737478630383,0.56358453,105030.0,105020.0,1.56253543]
[1737478630586,1.10263217,105030.0,105020.0,0.01490443]
[1737478630782,0.047631,105020.0,105010.0,0.00014263]
[1737478630983,0.53905264,105020.0,105010.0,0.00014263]
[1737478631683,0.53905264,105020.0,104970.0,0.877252]